[Event "36th European Club Cup 2021"]
[Site "Struga"]
[Date "2021.09.21"]
[Round "4.54"]
[White "Gjorgjieski, Dejan"]
[Black "Moingt, Jean-Claude"]
[Result "1/2-1/2"]
[ECO "D02"]
[WhiteElo "2125"]
[BlackElo "2125"]
[Annotator "NA"]
[PlyCount "72"]
[EventDate "2021.09.18"]
[EventType "team-tourn"]
[EventCountry "MKD"]
[SourceTitle "playchess.com"]
[Source "ChessBase"]
[SourceQuality "1"]
[TimeControl "40/5400+30:1800+30"]

1. d4 {[%emt 0:00:10]} Nf6 {[%emt 0:00:21]} 2. Nf3 {[%emt 0:00:15]} c5 {
[%emt 0:00:10]} 3. c3 {[%emt 0:01:03]} e6 {[%emt 0:02:20]} 4. g3 {[%emt 0:04:
30]} d5 {[%emt 0:03:34]} 5. Bg2 {[%emt 0:00:42]} Nc6 {[%emt 0:00:24]} 6. O-O {
[%emt 0:00:10]} Bd6 {[%emt 0:00:39]} 7. Bf4 {[%emt 0:08:43]} Bxf4 {[%emt 0:03:
47]} 8. gxf4 {[%emt 0:01:09]} Qb6 {[%emt 0:00:10]} 9. Qb3 {[%emt 0:09:47]} Bd7
{[%emt 0:21:03]} 10. Nbd2 {[%emt 0:11:30]} cxd4 {[%emt 0:00:45]} 11. Qxb6 {
[%emt 0:00:40]} axb6 {[%emt 0:00:06]} 12. Nxd4 {[%emt 0:00:15]} Nxd4 {[%emt 0:
01:10]} 13. cxd4 {[%emt 0:00:22]} Ke7 {[%emt 0:00:06]} 14. Rfc1 {[%emt 0:20:47]
} Rhc8 {[%emt 0:00:10]} 15. a3 {[%emt 0:00:10]} Rc6 {[%emt 0:09:35]} 16. Rxc6 {
[%emt 0:03:54]} bxc6 {[%emt 0:00:15]} 17. Rc1 {[%emt 0:00:16]} Ra4 {[%emt 0:01:
03]} 18. e3 {[%emt 0:00:18]} Kd6 {[%emt 0:00:49]} 19. Rc3 {[%emt 0:16:31]} Ne8
{[%emt 0:03:41]} 20. Bf3 {[%emt 0:04:02]} f6 {[%emt 0:03:51]} 21. Bd1 {[%emt 0:
01:54]} Ra8 {[%emt 0:01:28]} 22. Nb3 {[%emt 0:09:02]} Nc7 {[%emt 0:01:41]} 23.
Be2 {[%emt 0:00:07]} h6 {[%emt 0:03:01]} 24. h4 {[%emt 0:01:20]} e5 {[%emt 0:
06:05]} 25. fxe5+ {[%emt 0:00:23]} fxe5 {[%emt 0:00:05]} 26. dxe5+ {[%emt 0:00:
10]} Kxe5 {[%emt 0:00:06]} 27. f4+ {[%emt 0:00:16]} Kd6 {[%emt 0:00:22]} 28.
Kf2 {[%emt 0:02:57]} Rf8 {[%emt 0:00:59]} 29. h5 {[%emt 0:00:08]} c5 {[%emt 0:
00:24]} 30. Rc1 {[%emt 0:00:08]} Ne6 {[%emt 0:00:37]} 31. Rd1 {[%emt 0:04:21]}
Ba4 {[%emt 0:00:24]} 32. Bc4 {[%emt 0:00:00]} d4 {[%emt 0:00:34]} 33. Rd3 {
[%emt 0:00:00]} Nc7 {[%emt 0:13:10]} 34. exd4 {[%emt 0:01:30]} Bxb3 {[%emt 0:
24:35]} 35. Rxb3 {[%emt 0:00:30]} Rxf4+ {[%emt 0:00:30]} 36. Ke3 {[%emt 0:00:
30]} Rh4 {[%emt 0:00:30]} 1/2-1/2

[Event "36th European Club Cup 2021"]
[Site "Struga"]
[Date "2021.09.21"]
[Round "4.56"]
[White "Ivanisevic, Ivan"]
[Black "Makolli, Perparim"]
[Result "1-0"]
[ECO "D35"]
[WhiteElo "2582"]
[BlackElo "2249"]
[Annotator "ChessBase"]
[PlyCount "67"]
[EventDate "2021.09.18"]
[EventType "team-tourn"]
[EventCountry "MKD"]
[SourceTitle "playchess.com"]
[Source "ChessBase"]
[SourceQuality "1"]
[TimeControl "40/5400+30:1800+30"]

1. c4 {[%emt 0:00:03]} e6 {[%emt 0:00:59]} 2. Nc3 {[%emt 0:00:06]} d5 {[%emt 0:
00:22]} 3. d4 {[%emt 0:00:05]} Nf6 {[%emt 0:00:38]} 4. cxd5 {[%emt 0:00:07]}
exd5 {[%emt 0:00:25]} 5. Bg5 {[%emt 0:00:06]} Be7 {[%emt 0:00:48]} 6. e3 {
[%emt 0:00:07]} O-O {[%emt 0:01:37]} 7. Bd3 {[%emt 0:00:06]} Nbd7 {[%emt 0:01:
18]} 8. Nge2 {[%emt 0:00:17]} Re8 {[%emt 0:03:53]} 9. O-O {[%emt 0:00:58]} Nf8
{[%emt 0:03:08]} 10. b4 {[%emt 0:02:31]} c6 {[%emt 0:01:18]} 11. b5 {[%emt 0:
02:11]} Ne4 {[%emt 0:14:02]} 12. Bxe7 {[%emt 0:01:51]} Qxe7 {[%emt 0:02:49]}
13. Bxe4 {[%emt 0:03:26]} dxe4 {[%emt 0:00:07]} 14. bxc6 {[%emt 0:00:04]} bxc6
{[%emt 0:00:26]} 15. Qa4 {[%emt 0:00:43]} Qd6 {[%emt 0:07:28]} 16. Rfc1 {
[%emt 0:02:37]} Nd7 {[%emt 0:04:21]} 17. d5 {[%emt 0:09:08]} cxd5 {[%emt 0:02:
42]} 18. Nf4 {[%emt 0:06:24]} Re5 {[%emt 0:07:51]} 19. Nb5 {[%emt 0:03:38]} Qe7
{[%emt 0:01:47]} 20. Nc7 {[%emt 0:01:05]} Rb8 {[%emt 0:05:56]} 21. Qxa7 {
[%emt 0:07:50]} Qd6 {[%emt 0:04:27]} 22. a4 {[%emt 0:06:40]} g5 {[%emt 0:07:50]
} 23. Nh5 {[%emt 0:06:14]} Rb7 {[%emt 0:05:22]} 24. Nb5 {[%emt 0:01:17]} Qb8 {
[%emt 0:02:06]} 25. Qd4 {[%emt 0:02:39]} Rb6 {[%emt 0:01:34]} 26. Nc7 {[%emt 0:
04:45]} Ba6 {[%emt 0:03:48]} 27. a5 {[%emt 0:10:58]} Rh6 {[%emt 0:00:34]} 28.
Nxa6 {[%emt 0:00:18]} Rxa6 {[%emt 0:00:05]} 29. Rab1 {[%emt 0:00:10]} Qe8 {
[%emt 0:07:21]} 30. Rb7 {[%emt 0:00:29]} g4 {[%emt 0:00:18]} 31. Nf4 {[%emt 0:
03:44]} Nf6 {[%emt 0:03:11]} 32. Rb6 {[%emt 0:01:33]} Rxb6 {[%emt 0:04:43]} 33.
axb6 {[%emt 0:00:06]} Rf5 {[%emt 0:00:31]} 34. b7 {[%emt 0:01:02]} 1-0

[Event "36th European Club Cup 2021"]
[Site "Struga"]
[Date "2021.09.21"]
[Round "4.57"]
[White "Bajraktari, Perparim"]
[Black "Miladinovic, Igor"]
[Result "0-1"]
[ECO "A26"]
[WhiteElo "2196"]
[BlackElo "2536"]
[Annotator "ChessBase"]
[PlyCount "74"]
[EventDate "2021.09.18"]
[EventType "team-tourn"]
[EventCountry "MKD"]
[SourceTitle "playchess.com"]
[Source "ChessBase"]
[SourceQuality "1"]
[TimeControl "40/5400+30:1800+30"]

1. c4 {[%emt 0:00:03]} e5 {[%emt 0:00:08]} 2. Nc3 {[%emt 0:00:07]} Nc6 {
[%emt 0:00:06]} 3. g3 {[%emt 0:00:06]} g6 {[%emt 0:00:11]} 4. Bg2 {[%emt 0:00:
06]} Bg7 {[%emt 0:00:05]} 5. d3 {[%emt 0:00:11]} d6 {[%emt 0:00:58]} 6. Rb1 {
[%emt 0:00:07]} a5 {[%emt 0:00:08]} 7. a3 {[%emt 0:00:06]} Nf6 {[%emt 0:00:31]}
8. Nf3 {[%emt 0:00:09]} O-O {[%emt 0:00:07]} 9. O-O {[%emt 0:00:27]} Re8 {
[%emt 0:00:14]} 10. b4 {[%emt 0:00:19]} axb4 {[%emt 0:00:06]} 11. axb4 {
[%emt 0:00:05]} Nd4 {[%emt 0:00:28]} 12. Nd2 {[%emt 0:14:45]} c6 {[%emt 0:00:
19]} 13. b5 {[%emt 0:00:44]} d5 {[%emt 0:03:57]} 14. e3 {[%emt 0:08:59]} Ne6 {
[%emt 0:03:11]} 15. Nb3 {[%emt 0:03:29]} h5 {[%emt 0:02:01]} 16. cxd5 {[%emt 0:
03:01]} cxd5 {[%emt 0:00:14]} 17. e4 {[%emt 0:00:07]} d4 {[%emt 0:08:33]} 18.
Nd5 {[%emt 0:09:46]} Nxd5 {[%emt 0:00:34]} 19. exd5 {[%emt 0:00:07]} Nc7 {
[%emt 0:00:20]} 20. Nc5 {[%emt 0:02:59]} Nxd5 {[%emt 0:02:07]} 21. Qb3 {
[%emt 0:01:15]} Nc3 {[%emt 0:00:52]} 22. Bd2 {[%emt 0:03:24]} Nxb1 {[%emt 0:01:
57]} 23. Rxb1 {[%emt 0:00:10]} Qb6 {[%emt 0:10:50]} 24. Bd5 {[%emt 0:08:29]}
Re7 {[%emt 0:19:43]} 25. Na4 {[%emt 0:08:07]} Qf6 {[%emt 0:07:13]} 26. h4 {
[%emt 0:01:20]} Bf5 {[%emt 0:38:37]} 27. Bg5 {[%emt 0:05:45]} Qd6 {[%emt 0:00:
00]} 28. Bxe7 {[%emt 0:02:30]} Qxe7 {[%emt 0:00:00]} 29. Rc1 {[%emt 0:02:04]}
e4 {[%emt 0:00:00]} 30. dxe4 {[%emt 0:08:33]} Bxe4 {[%emt 0:00:00]} 31. Bxe4 {
[%emt 0:00:26]} Qxe4 {[%emt 0:00:00]} 32. Rc7 {[%emt 0:00:18]} Qf5 {[%emt 0:00:
00]} 33. Nc5 {[%emt 0:09:46]} Ra1+ {[%emt 0:00:00]} 34. Kg2 {[%emt 0:00:11]}
Rc1 {[%emt 0:00:00]} 35. Ne6 {[%emt 0:04:15]} Qe4+ {[%emt 0:04:30]} 36. Qf3
Rg1+ 37. Kxg1 {[%emt 0:06:44]} Qxf3 0-1

[Event "36th European Club Cup 2021"]
[Site "Struga"]
[Date "2021.09.21"]
[Round "4.58"]
[White "Miljkovic, Miroslav D"]
[Black "Asllani, Muhamet"]
[Result "1-0"]
[ECO "D53"]
[WhiteElo "2470"]
[BlackElo "2225"]
[Annotator "ChessBase"]
[PlyCount "109"]
[EventDate "2021.09.18"]
[EventType "team-tourn"]
[EventCountry "MKD"]
[SourceTitle "playchess.com"]
[Source "ChessBase"]
[SourceQuality "1"]
[TimeControl "40/5400+30:1800+30"]

1. d4 {[%emt 0:00:04]} Nf6 {[%emt 0:00:25]} 2. c4 {[%emt 0:00:18]} e6 {[%emt 0:
00:15]} 3. Nc3 {[%emt 0:00:24]} d5 {[%emt 0:00:27]} 4. Bg5 {[%emt 0:00:21]} Be7
{[%emt 0:00:22]} 5. e3 {[%emt 0:00:12]} c6 {[%emt 0:00:12]} 6. Nf3 {[%emt 0:00:
09]} dxc4 {[%emt 0:00:24]} 7. Bxc4 {[%emt 0:00:08]} b5 {[%emt 0:00:09]} 8. Bd3
{[%emt 0:00:19]} Bb7 {[%emt 0:00:13]} 9. O-O {[%emt 0:05:31]} Nbd7 {[%emt 0:00:
14]} 10. Rc1 {[%emt 0:00:46]} O-O {[%emt 0:02:19]} 11. Bxf6 {[%emt 0:02:56]}
Nxf6 {[%emt 0:02:32]} 12. Ne4 {[%emt 0:01:28]} Nd5 {[%emt 0:06:32]} 13. Nc5 {
[%emt 0:01:17]} Bxc5 {[%emt 0:01:17]} 14. Rxc5 {[%emt 0:00:17]} Rc8 {[%emt 0:
00:18]} 15. Ne5 {[%emt 0:05:39]} Nb4 {[%emt 0:04:36]} 16. Be4 {[%emt 0:02:48]}
Qe7 {[%emt 0:00:51]} 17. Qf3 {[%emt 0:23:05]} Rc7 {[%emt 0:03:11]} 18. Nd3 {
[%emt 0:26:44]} Nd5 {[%emt 0:17:30]} 19. Rfc1 {[%emt 0:00:52]} Rfc8 {[%emt 0:
00:22]} 20. a3 {[%emt 0:01:59]} Qd6 {[%emt 0:04:04]} 21. Ne5 {[%emt 0:00:51]}
a5 {[%emt 0:03:06]} 22. Qd1 {[%emt 0:03:00]} f6 {[%emt 0:01:54]} 23. Nd3 {
[%emt 0:02:01]} a4 {[%emt 0:00:59]} 24. Bxd5 {[%emt 0:01:37]} cxd5 {[%emt 0:04:
16]} 25. Qd2 {[%emt 0:06:40]} Rxc5 {[%emt 0:02:20]} 26. Rxc5 {[%emt 0:01:49]}
Rxc5 {[%emt 0:00:13]} 27. Nxc5 {[%emt 0:00:43]} Bc6 {[%emt 0:00:31]} 28. Qc3 {
[%emt 0:03:30]} h5 {[%emt 0:02:16]} 29. Nd3 {[%emt 0:00:30]} Be8 {[%emt 0:00:
32]} 30. Qc8 {[%emt 0:00:57]} Kf8 {[%emt 0:08:11]} 31. f4 {[%emt 0:01:26]} Qc6
{[%emt 0:02:43]} 32. Qxc6 {[%emt 0:00:52]} Bxc6 {[%emt 0:00:14]} 33. Kf2 {
[%emt 0:00:40]} Ke7 {[%emt 0:00:01]} 34. Ke1 {[%emt 0:00:27]} Kd6 {[%emt 0:00:
49]} 35. Kd2 {[%emt 0:01:14]} Be8 {[%emt 0:00:33]} 36. Kc3 {[%emt 0:01:37]} h4
{[%emt 0:01:33]} 37. Kb4 {[%emt 0:00:29]} Bh5 {[%emt 0:00:07]} 38. Nc1 {
[%emt 0:02:19]} Kc6 {[%emt 0:02:33]} 39. Ka5 {[%emt 0:00:29]} Bg6 {[%emt 0:02:
12]} 40. Na2 {[%emt 0:00:00]} e5 {[%emt 0:00:00]} 41. fxe5 {[%emt 0:06:04]}
fxe5 {[%emt 0:02:21]} 42. Nb4+ {[%emt 0:00:46]} Kd6 {[%emt 0:00:05]} 43. Kxb5 {
[%emt 0:00:12]} exd4 {[%emt 0:00:31]} 44. exd4 {[%emt 0:00:03]} Be4 {[%emt 0:
00:50]} 45. g3 {[%emt 0:00:12]} h3 {[%emt 0:00:12]} 46. Kxa4 {[%emt 0:01:47]}
Ke6 {[%emt 0:00:38]} 47. Kb3 {[%emt 0:01:16]} Kf5 {[%emt 0:00:19]} 48. Kc3 {
[%emt 0:03:00]} Kg4 {[%emt 0:00:14]} 49. a4 {[%emt 0:00:30]} Kf3 {[%emt 0:03:
12]} 50. Kd2 {[%emt 0:00:42]} Kg2 {[%emt 0:05:47]} 51. Ke3 {[%emt 0:00:16]}
Kxh2 {[%emt 0:00:26]} 52. Kf2 {[%emt 0:00:03]} g5 {[%emt 0:00:21]} 53. a5 {
[%emt 0:00:34]} Bd3 {[%emt 0:00:37]} 54. Nxd3 {[%emt 0:04:03]} g4 {[%emt 0:00:
32]} 55. Ne5 {[%emt 0:00:17]} 1-0

[Event "36th European Club Cup 2021"]
[Site "Struga"]
[Date "2021.09.21"]
[Round "4.59"]
[White "Zymberi, Astrit"]
[Black "Kosanovic, Goran A"]
[Result "0-1"]
[ECO "D31"]
[WhiteElo "2107"]
[BlackElo "2311"]
[Annotator "NA"]
[PlyCount "110"]
[EventDate "2021.09.18"]
[EventType "team-tourn"]
[EventCountry "MKD"]
[SourceTitle "playchess.com"]
[Source "ChessBase"]
[SourceQuality "1"]
[TimeControl "40/5400+30:1800+30"]

1. d4 {[%emt 0:00:02]} d5 {[%emt 0:00:31]} 2. c4 {[%emt 0:00:09]} e6 {[%emt 0:
00:10]} 3. Nc3 {[%emt 0:00:06]} c6 {[%emt 0:02:17]} 4. cxd5 {[%emt 0:02:56]}
exd5 {[%emt 0:00:09]} 5. Bf4 {[%emt 0:00:06]} Bd6 {[%emt 0:00:44]} 6. Bxd6 {
[%emt 0:02:16]} Qxd6 {[%emt 0:00:12]} 7. e3 {[%emt 0:00:06]} Bf5 {[%emt 0:00:
32]} 8. Bd3 {[%emt 0:01:06]} Bxd3 {[%emt 0:01:13]} 9. Qxd3 {[%emt 0:00:17]} Nf6
{[%emt 0:01:14]} 10. Nge2 {[%emt 0:01:23]} Nbd7 {[%emt 0:04:23]} 11. f3 {
[%emt 0:02:43]} O-O {[%emt 0:03:20]} 12. O-O {[%emt 0:03:40]} Rfe8 {[%emt 0:00:
59]} 13. Ng3 {[%emt 0:03:51]} c5 {[%emt 0:05:29]} 14. Rad1 {[%emt 0:04:57]}
Rad8 {[%emt 0:11:01]} 15. Rfe1 {[%emt 0:05:29]} a6 {[%emt 0:05:40]} 16. dxc5 {
[%emt 0:19:58]} Nxc5 {[%emt 0:02:53]} 17. Qc2 {[%emt 0:03:14]} Qb6 {[%emt 0:08:
41]} 18. Nf5 {[%emt 0:07:26]} Ne6 {[%emt 0:09:58]} 19. Qf2 {[%emt 0:02:28]} g6
{[%emt 0:04:33]} 20. Nd4 {[%emt 0:03:01]} Nxd4 {[%emt 0:03:10]} 21. Rxd4 {
[%emt 0:02:07]} Rd6 {[%emt 0:01:00]} 22. g4 {[%emt 0:06:29]} h6 {[%emt 0:01:45]
} 23. h4 {[%emt 0:05:01]} Rde6 {[%emt 0:07:09]} 24. Qd2 {[%emt 0:02:01]} Re5 {
[%emt 0:01:11]} 25. Kg2 {[%emt 0:05:13]} Qe6 {[%emt 0:03:22]} 26. Nd1 {[%emt 0:
05:10]} h5 {[%emt 0:07:34]} 27. g5 {[%emt 0:01:29]} Ne4 {[%emt 0:00:37]} 28.
fxe4 {[%emt 0:03:15]} Qg4+ {[%emt 0:00:25]} 29. Kf1 {[%emt 0:01:42]} dxe4 {
[%emt 0:01:32]} 30. Re2 {[%emt 0:01:01]} Qxh4 {[%emt 0:00:55]} 31. Rg2 {
[%emt 0:02:39]} Qh1+ {[%emt 0:08:57]} 32. Rg1 {[%emt 0:00:46]} Rf5+ {[%emt 0:
00:49]} 33. Nf2 {[%emt 0:00:17]} Qh3+ {[%emt 0:00:34]} 34. Ke1 {[%emt 0:00:39]}
Qh4 {[%emt 0:01:22]} 35. Rd8 {[%emt 0:03:07]} Rxd8 {[%emt 0:00:07]} 36. Qxd8+ {
[%emt 0:00:06]} Kh7 {[%emt 0:00:04]} 37. Qd2 {[%emt 0:01:14]} Qh2 {[%emt 0:02:
14]} 38. Rh1 {[%emt 0:01:04]} Qg3 {[%emt 0:00:44]} 39. Rf1 {[%emt 0:00:31]} Rf3
{[%emt 0:00:36]} 40. Kd1 {[%emt 0:00:00]} Qxg5 {[%emt 0:00:00]} 41. Re1 {
[%emt 0:06:58]} Qf5 {[%emt 0:01:50]} 42. Re2 {[%emt 0:00:30]} h4 {[%emt 0:01:
13]} 43. Kc2 {[%emt 0:05:12]} g5 {[%emt 0:02:43]} 44. Nd1 {[%emt 0:01:12]} g4 {
[%emt 0:00:33]} 45. Qd8 {[%emt 0:02:15]} Qf6 {[%emt 0:00:42]} 46. Qb8 {[%emt 0:
02:27]} g3 {[%emt 0:06:37]} 47. Qxb7 {[%emt 0:02:20]} h3 {[%emt 0:01:09]} 48.
Qd7 {[%emt 0:01:44]} g2 {[%emt 0:00:42]} 49. Qg4 {[%emt 0:00:40]} Qg6 {[%emt 0:
01:11]} 50. Qh4+ {[%emt 0:02:01]} Kg7 {[%emt 0:00:08]} 51. Rd2 {[%emt 0:00:42]}
Qg3 {[%emt 0:04:07]} 52. Qe7 {[%emt 0:01:45]} g1=Q {[%emt 0:02:02]} 53. Rd8 {
[%emt 0:00:19]} Kh7 {[%emt 0:01:02]} 54. Qc5 {[%emt 0:03:04]} Qg6 {[%emt 0:02:
27]} 55. Qe5 {[%emt 0:02:09]} Rf6 {[%emt 0:00:48]} 0-1

[Event "36th European Club Cup 2021"]
[Site "Struga"]
[Date "2021.09.21"]
[Round "4.60"]
[White "Stankovic, Milos"]
[Black "Bahtiri, Sabri"]
[Result "1-0"]
[ECO "D02"]
[WhiteElo "2409"]
[BlackElo "2010"]
[Annotator "NA"]
[PlyCount "77"]
[EventDate "2021.09.18"]
[EventType "team-tourn"]
[EventCountry "MKD"]
[SourceTitle "playchess.com"]
[Source "ChessBase"]
[SourceQuality "1"]
[TimeControl "40/5400+30:1800+30"]

1. d4 {[%emt 0:01:12]} d5 {[%emt 0:00:10]} 2. Nf3 {[%emt 0:00:26]} Nf6 {
[%emt 0:00:51]} 3. Bf4 {[%emt 0:00:32]} e6 {[%emt 0:10:59]} 4. e3 {[%emt 0:01:
33]} Bd6 {[%emt 0:00:36]} 5. Ne5 {[%emt 0:00:28]} O-O {[%emt 0:00:25]} 6. Nd2 {
[%emt 0:00:27]} c5 {[%emt 0:00:15]} 7. c3 {[%emt 0:00:33]} Nc6 {[%emt 0:00:47]}
8. h4 {[%emt 0:00:39]} Qc7 {[%emt 0:03:28]} 9. Ndf3 {[%emt 0:02:31]} Ne4 {
[%emt 0:00:26]} 10. Bd3 {[%emt 0:06:14]} f6 {[%emt 0:02:20]} 11. Nxc6 {[%emt 0:
00:36]} Bxf4 {[%emt 0:22:17]} 12. Ne7+ {[%emt 0:02:01]} Qxe7 {[%emt 0:00:10]}
13. exf4 {[%emt 0:00:11]} cxd4 {[%emt 0:00:09]} 14. Bxe4 {[%emt 0:04:33]} dxe4
{[%emt 0:00:16]} 15. Nxd4 {[%emt 0:00:11]} e5 {[%emt 0:04:11]} 16. fxe5 {
[%emt 0:00:31]} Qxe5 {[%emt 0:01:40]} 17. Qb3+ {[%emt 0:02:41]} Kh8 {[%emt 0:
01:44]} 18. O-O {[%emt 0:04:36]} b6 {[%emt 0:01:46]} 19. Rfe1 {[%emt 0:05:28]}
Bb7 {[%emt 0:01:52]} 20. Rad1 {[%emt 0:00:49]} f5 {[%emt 0:04:51]} 21. Ne6 {
[%emt 0:02:08]} Rf6 {[%emt 0:02:49]} 22. Nd8 {[%emt 0:08:09]} Qe7 {[%emt 0:02:
07]} 23. Nxb7 {[%emt 0:04:22]} Qxb7 {[%emt 0:00:02]} 24. Rd5 {[%emt 0:00:10]}
Qf7 {[%emt 0:10:22]} 25. Red1 {[%emt 0:09:29]} h5 {[%emt 0:00:28]} 26. Rd7 {
[%emt 0:01:54]} Qxb3 {[%emt 0:03:29]} 27. axb3 {[%emt 0:00:18]} Kg8 {[%emt 0:
00:09]} 28. R1d5 {[%emt 0:00:31]} g6 {[%emt 0:07:54]} 29. Rb7 {[%emt 0:01:27]}
Rf7 {[%emt 0:06:02]} 30. Rdd7 {[%emt 0:00:15]} Rxd7 {[%emt 0:05:04]} 31. Rxd7 {
[%emt 0:00:25]} Kf8 {[%emt 0:00:01]} 32. Kf1 {[%emt 0:02:05]} f4 {[%emt 0:02:
11]} 33. Ke2 {[%emt 0:01:56]} Re8 {[%emt 0:02:15]} 34. Rxa7 {[%emt 0:00:15]}
Re6 {[%emt 0:00:05]} 35. Rb7 {[%emt 0:01:04]} Rd6 {[%emt 0:00:07]} 36. b4 {
[%emt 0:00:31]} Ke8 {[%emt 0:00:29]} 37. Rc7 {[%emt 0:02:51]} Kf8 {[%emt 0:00:
36]} 38. Rc4 {[%emt 0:00:20]} Re6 {[%emt 0:00:14]} 39. f3 {[%emt 0:00:14]} 1-0

[Event "36th European Club Cup 2021"]
[Site "Struga"]
[Date "2021.09.22"]
[Round "5.12"]
[White "Henderson de La Fuente, Lance"]
[Black "Steinberg, Nitzan"]
[Result "0-1"]
[ECO "D12"]
[WhiteElo "2491"]
[BlackElo "2537"]
[Annotator "ChessBase"]
[PlyCount "88"]
[EventDate "2021.09.18"]
[EventType "team-tourn"]
[EventCountry "MKD"]
[SourceTitle "playchess.com"]
[Source "ChessBase"]
[SourceQuality "1"]
[TimeControl "40/5400+30:1800+30"]

1. d4 {[%emt 0:00:21]} d5 {[%emt 0:01:02]} 2. c4 {[%emt 0:00:33]} c6 {[%emt 0:
00:13]} 3. Nf3 {[%emt 0:00:56]} Nf6 {[%emt 0:00:14]} 4. e3 {[%emt 0:00:17]} Bf5
{[%emt 0:04:12]} 5. Nc3 {[%emt 0:00:38]} e6 {[%emt 0:00:05]} 6. Bd3 {[%emt 0:
01:40]} Bg6 {[%emt 0:04:49]} 7. O-O {[%emt 0:01:38]} Nbd7 {[%emt 0:02:03]} 8.
Qe2 {[%emt 0:03:41]} Bb4 {[%emt 0:03:22]} 9. Bd2 {[%emt 0:00:23]} a5 {[%emt 0:
04:03]} 10. a3 {[%emt 0:01:49]} Bxc3 {[%emt 0:01:25]} 11. Bxc3 {[%emt 0:00:29]}
Ne4 {[%emt 0:01:41]} 12. Bxe4 {[%emt 0:09:28]} Bxe4 {[%emt 0:01:58]} 13. Nd2 {
[%emt 0:00:41]} Nf6 {[%emt 1:11:53]} 14. a4 {[%emt 0:07:15]} O-O {[%emt 0:00:
00]} 15. b4 {[%emt 0:09:59]} b6 {[%emt 0:00:00]} 16. Rfc1 {[%emt 0:11:08]} Bg6
{[%emt 0:00:00]} 17. Nb3 {[%emt 0:10:12]} Ne4 {[%emt 0:00:00]} 18. Be1 {
[%emt 0:00:08]} axb4 {[%emt 0:00:00]} 19. Bxb4 {[%emt 0:00:31]} Re8 {[%emt 0:
00:00]} 20. f3 {[%emt 0:02:12]} Nf6 {[%emt 0:00:00]} 21. Be1 {[%emt 0:07:11]}
e5 {[%emt 0:00:00]} 22. dxe5 {[%emt 0:05:31]} Rxe5 {[%emt 0:00:00]} 23. c5 {
[%emt 0:12:14]} bxc5 {[%emt 0:00:00]} 24. Bg3 {[%emt 0:02:33]} Re8 {[%emt 0:00:
00]} 25. Nxc5 {[%emt 0:00:06]} Qe7 {[%emt 0:00:00]} 26. a5 {[%emt 0:01:05]} Ra7
{[%emt 0:00:00]} 27. Qd2 {[%emt 0:03:01]} Rea8 {[%emt 0:00:00]} 28. Ra3 {
[%emt 0:04:05]} Rxa5 {[%emt 0:00:00]} 29. Rxa5 {[%emt 0:03:14]} Rxa5 {[%emt 0:
00:00]} 30. Qd4 {[%emt 0:00:17]} h6 {[%emt 0:02:24]} 31. h3 {[%emt 0:01:49]}
Ra3 {[%emt 0:01:29]} 32. Rc3 {[%emt 0:00:29]} Rxc3 {[%emt 0:04:05]} 33. Qxc3 {
[%emt 0:00:02]} Ne8 {[%emt 0:00:28]} 34. Nb3 {[%emt 0:01:04]} Nd6 {[%emt 0:01:
04]} 35. Qxc6 {[%emt 0:00:43]} Nf5 {[%emt 0:00:51]} 36. Bf2 {[%emt 0:00:16]}
Nxe3 {[%emt 0:00:19]} 37. Nd4 {[%emt 0:00:26]} Kh7 {[%emt 0:00:35]} 38. Nb5 {
[%emt 0:00:51]} Qg5 {[%emt 0:00:38]} 39. g3 {[%emt 0:00:30]} Nd1 {[%emt 0:00:
28]} 40. f4 {[%emt 0:00:00]} Qh5 {[%emt 0:00:00]} 41. Nd6 {[%emt 0:05:36]} Bd3
{[%emt 0:11:50]} 42. Qc1 {[%emt 0:03:09]} Nxf2 {[%emt 0:03:57]} 43. Kxf2 {
[%emt 0:00:03]} Qxh3 {[%emt 0:02:17]} 44. Qe3 {[%emt 0:00:01]} Qf1# {[%emt 0:
00:09]} 0-1

[Event "36th European Club Cup 2021"]
[Site "Struga"]
[Date "2021.09.22"]
[Round "5.18"]
[White "Haarr, Jon Kristian"]
[Black "Pancevski, Filip"]
[Result "0-1"]
[ECO "C41"]
[WhiteElo "2162"]
[BlackElo "2496"]
[Annotator "ChessBase"]
[PlyCount "70"]
[EventDate "2021.09.18"]
[EventType "team-tourn"]
[EventCountry "MKD"]
[SourceTitle "playchess.com"]
[Source "ChessBase"]
[SourceQuality "1"]
[TimeControl "40/5400+30:1800+30"]

1. e4 {[%emt 0:00:12]} d6 {[%emt 0:00:05]} 2. d4 {[%emt 0:00:13]} Nf6 {[%emt 0:
00:03]} 3. Nc3 {[%emt 0:01:19]} e5 {[%emt 0:00:06]} 4. Nf3 {[%emt 0:00:59]}
Nbd7 {[%emt 0:00:07]} 5. Rg1 {[%emt 0:00:58]} g6 {[%emt 0:39:44]} 6. g4 {
[%emt 0:01:26]} c6 {[%emt 0:01:06]} 7. g5 {[%emt 0:01:18]} Nh5 {[%emt 0:00:05]}
8. Be3 {[%emt 0:02:01]} Bg7 {[%emt 0:07:47]} 9. Qd2 {[%emt 0:04:10]} O-O {
[%emt 0:01:06]} 10. O-O-O {[%emt 0:01:14]} Qa5 {[%emt 0:00:40]} 11. Kb1 {
[%emt 0:09:28]} Re8 {[%emt 0:01:30]} 12. a3 {[%emt 0:24:19]} Qc7 {[%emt 0:04:
46]} 13. Be2 {[%emt 0:03:58]} a5 {[%emt 0:11:50]} 14. Nh4 {[%emt 0:04:04]} Nf4
{[%emt 0:01:56]} 15. Bxf4 {[%emt 0:02:10]} exf4 {[%emt 0:00:07]} 16. Qxf4 {
[%emt 0:00:44]} b5 {[%emt 0:06:15]} 17. Rg3 {[%emt 0:06:46]} Nb6 {[%emt 0:04:
04]} 18. Nf5 {[%emt 0:13:30]} gxf5 {[%emt 0:07:30]} 19. exf5 {[%emt 0:00:02]}
Rxe2 {[%emt 0:03:26]} 20. Nxe2 {[%emt 0:00:02]} Nd5 {[%emt 0:02:29]} 21. Qe4 {
[%emt 0:04:17]} Qd7 {[%emt 0:00:51]} 22. Rf3 {[%emt 0:04:48]} b4 {[%emt 0:02:
54]} 23. a4 {[%emt 0:05:27]} Ba6 {[%emt 0:01:36]} 24. Ng3 {[%emt 0:01:48]} Re8
{[%emt 0:00:25]} 25. Qh4 {[%emt 0:00:11]} Be2 {[%emt 0:01:33]} 26. Nxe2 {
[%emt 0:00:06]} Rxe2 {[%emt 0:00:01]} 27. f6 {[%emt 0:00:32]} Bf8 {[%emt 0:00:
25]} 28. g6 {[%emt 0:06:07]} fxg6 {[%emt 0:00:28]} 29. f7+ {[%emt 0:00:19]} Kg7
{[%emt 0:00:40]} 30. Qg5 {[%emt 0:01:17]} Qe7 {[%emt 0:01:00]} 31. Qg1 {
[%emt 0:01:34]} Qe4 {[%emt 0:00:25]} 32. Rfd3 {[%emt 0:00:08]} b3 {[%emt 0:00:
50]} 33. f3 {[%emt 0:01:01]} bxc2+ {[%emt 0:00:08]} 34. Ka2 {[%emt 0:00:05]}
cxd1=Q {[%emt 0:00:42]} 35. Rxd1 {[%emt 0:00:28]} Qc2 {[%emt 0:00:14]} 0-1